[Event "GrandPrix_29.05"]
[Site "Chess.com"]
[Date "2020.05.29"]
[Round "2"]
[White "gummigisla"]
[Black "friesnielsen2302"]
[Result "1-0"]
[WhiteElo "2125"]
[BlackElo "1507"]
[TimeControl "600+2"]
[EndTime "9:49:30 PDT"]
[Termination "gummigisla won by resignation"]

1. Nf3 {[%clk 0:10:01.9]} 1... e6 {[%clk 0:09:56.2]} 2. g3 {[%clk 0:09:48.5]}
2... g5 {[%clk 0:09:55.5]} 3. d4 {[%clk 0:09:41.9]} 3... g4 {[%clk 0:09:54.2]}
4. Ne5 {[%clk 0:09:42.4]} 4... f5 {[%clk 0:09:45.5]} 5. h3 {[%clk 0:09:41.5]}
5... d6 {[%clk 0:09:46.1]} 6. Nd3 {[%clk 0:09:41.5]} 6... Nf6 {[%clk 0:09:44.6]}
7. Bg5 {[%clk 0:09:31.7]} 7... Be7 {[%clk 0:09:42.1]} 8. hxg4 {[%clk 0:09:28.3]}
8... Nxg4 {[%clk 0:09:40.9]} 9. Bxe7 {[%clk 0:09:26.1]} 9... Qxe7 {[%clk
0:09:40.3]} 10. Nf4 {[%clk 0:09:13.4]} 10... Rg8 {[%clk 0:09:29.6]} 11. Nd2
{[%clk 0:09:01.8]} 11... Nc6 {[%clk 0:09:19.9]} 12. Nf3 {[%clk 0:09:00.2]} 12...
d5 {[%clk 0:09:13.1]} 13. e3 {[%clk 0:08:56.9]} 13... Bd7 {[%clk 0:09:03.9]} 14.
c3 {[%clk 0:08:54.5]} 14... O-O-O {[%clk 0:09:02.9]} 15. Qc2 {[%clk 0:08:32.1]}
15... Kb8 {[%clk 0:09:01.6]} 16. O-O-O {[%clk 0:08:30.8]} 16... Bc8 {[%clk
0:08:48.5]} 17. Bb5 {[%clk 0:08:06.4]} 17... Rd6 {[%clk 0:08:41.2]} 18. Nd3
{[%clk 0:07:55.4]} 18... Na5 {[%clk 0:08:32.8]} 19. b4 {[%clk 0:07:40.7]} 19...
Nc4 {[%clk 0:08:30.4]} 20. Bxc4 {[%clk 0:07:40]} 20... dxc4 {[%clk 0:08:31.1]}
21. Nde5 {[%clk 0:07:41.2]} 21... b5 {[%clk 0:08:27.2]} 22. a4 {[%clk
0:07:29.4]} 22... Bb7 {[%clk 0:08:22.7]} 23. axb5 {[%clk 0:07:25.8]} 23... Rb6
{[%clk 0:08:13.7]} 24. Rh4 {[%clk 0:06:33.2]} 24... Nf6 {[%clk 0:08:06.9]} 25.
Nd2 {[%clk 0:06:25.3]} 25... Rxb5 {[%clk 0:08:04.9]} 26. Ndxc4 {[%clk
0:06:23.1]} 26... Nd5 {[%clk 0:07:33.5]} 27. Na5 {[%clk 0:05:51.9]} 27... Rb6
{[%clk 0:07:24.2]} 28. Rdh1 {[%clk 0:05:05.7]} 28... Rg7 {[%clk 0:07:13.7]} 29.
Nxb7 {[%clk 0:05:03.5]} 29... Kxb7 {[%clk 0:07:11]} 30. Nd3 {[%clk 0:04:59.5]}
30... Ka8 {[%clk 0:07:03.4]} 31. Nc5 {[%clk 0:04:57.3]} 31... Nf6 {[%clk
0:06:49.1]} 32. Qa2 {[%clk 0:04:50.9]} 32... Nd5 {[%clk 0:06:43]} 33. Kd2 {[%clk
0:04:44.2]} 33... Qd8 {[%clk 0:06:35.9]} 34. Rxh7 {[%clk 0:04:38.5]} 34... Rxh7
{[%clk 0:06:36.2]} 35. Rxh7 {[%clk 0:04:38.4]} 35... Qg8 {[%clk 0:06:32.9]} 36.
Rh1 {[%clk 0:04:27.9]} 36... c6 {[%clk 0:06:24.5]} 37. Ra1 {[%clk 0:04:24]}
37... Qh7 {[%clk 0:06:08.7]} 38. Nxe6 {[%clk 0:03:59.5]} 38... Kb8 {[%clk
0:06:09.6]} 39. Nf4 {[%clk 0:03:45.2]} 39... Qd7 {[%clk 0:05:59.2]} 40. Rh1
{[%clk 0:03:31.9]} 40... Kb7 {[%clk 0:05:53.3]} 41. Nd3 {[%clk 0:03:22.8]} 41...
Qg7 {[%clk 0:05:44.4]} 42. Ne5 {[%clk 0:03:06.2]} 42... Ra6 {[%clk 0:05:37.3]}
43. Qc4 {[%clk 0:03:03.5]} 43... Qc7 {[%clk 0:05:04.7]} 44. b5 {[%clk
0:02:56.2]} 1-0

[Event "GrandPrix_29.05"]
[Site "Chess.com"]
[Date "2020.05.29"]
[Round "2"]
[White "Zadar321"]
[Black "vagpat"]
[Result "0-1"]
[WhiteElo "1934"]
[BlackElo "2213"]
[TimeControl "600+2"]
[EndTime "9:50:02 PDT"]
[Termination "vagpat won by checkmate"]

1. e4 {[%clk 0:10:01.9]} 1... c5 {[%clk 0:10:00.1]} 2. Nf3 {[%clk 0:10:01.9]}
2... d6 {[%clk 0:10:00.5]} 3. d4 {[%clk 0:10:01.9]} 3... cxd4 {[%clk 0:10:02.4]}
4. Qxd4 {[%clk 0:10:02.4]} 4... Nc6 {[%clk 0:10:02.8]} 5. Bb5 {[%clk 0:10:03.3]}
5... Bd7 {[%clk 0:10:04.1]} 6. Bxc6 {[%clk 0:10:04.2]} 6... Bxc6 {[%clk
0:10:06]} 7. Nc3 {[%clk 0:10:05.1]} 7... h6 {[%clk 0:10:07.6]} 8. Be3 {[%clk
0:10:01.1]} 8... Nf6 {[%clk 0:10:08.5]} 9. O-O-O {[%clk 0:09:57.6]} 9... e6
{[%clk 0:10:01.7]} 10. e5 {[%clk 0:09:57]} 10... Nd5 {[%clk 0:09:30.1]} 11. exd6
{[%clk 0:09:44]} 11... Qxd6 {[%clk 0:09:27.6]} 12. Rhe1 {[%clk 0:09:35.3]} 12...
Nxc3 {[%clk 0:08:46.6]} 13. Qxc3 {[%clk 0:09:25.5]} 13... Qb4 {[%clk 0:08:47.3]}
14. Qe5 {[%clk 0:09:10.8]} 14... Qb5 {[%clk 0:08:21.7]} 15. Qg3 {[%clk
0:08:49.3]} 15... Bxf3 {[%clk 0:07:52.7]} 16. gxf3 {[%clk 0:08:41.2]} 16... Rc8
{[%clk 0:07:39.2]} 17. Bd4 {[%clk 0:08:22.7]} 17... Qa4 {[%clk 0:07:17.7]} 18.
Bc3 {[%clk 0:06:54.4]} 18... Qxa2 {[%clk 0:07:06.2]} 19. Rd3 {[%clk 0:06:55]}
19... Be7 {[%clk 0:06:19]} 20. f4 {[%clk 0:06:15.5]} 20... Bf6 {[%clk
0:04:46.4]} 21. Bxf6 {[%clk 0:05:44.8]} 21... gxf6 {[%clk 0:04:48.3]} 22. Qg7
{[%clk 0:05:38.7]} 22... Ke7 {[%clk 0:04:18.9]} 23. Qg2 {[%clk 0:04:10.6]} 23...
Qa1+ {[%clk 0:04:05.4]} 24. Kd2 {[%clk 0:04:11.7]} 24... Qxb2 {[%clk 0:04:06.5]}
25. Rc1 {[%clk 0:04:01.8]} 25... Rhd8 {[%clk 0:04:02.9]} 26. Qf1 {[%clk
0:03:13.4]} 26... Rxd3+ {[%clk 0:04:01.7]} 27. Kxd3 {[%clk 0:03:14.8]} 27...
Rd8+ {[%clk 0:03:23.1]} 28. Ke3 {[%clk 0:03:10.9]} 28... Qd4+ {[%clk 0:03:21.6]}
29. Kf3 {[%clk 0:03:11]} 29... Qd5+ {[%clk 0:03:22.3]} 30. Ke2 {[%clk
0:02:59.6]} 30... Qe4# {[%clk 0:03:22]} 0-1

[Event "GrandPrix_29.05"]
[Site "Chess.com"]
[Date "2020.05.29"]
[Round "2"]
[White "VSERGUEI"]
[Black "Nuvas"]
[Result "1-0"]
[WhiteElo "2611"]
[BlackElo "2237"]
[TimeControl "600+2"]
[EndTime "9:50:06 PDT"]
[Termination "VSERGUEI won by resignation"]

1. d4 {[%clk 0:10:01.9]} 1... d5 {[%clk 0:10:00.8]} 2. c4 {[%clk 0:10:01.4]}
2... c6 {[%clk 0:10:01.5]} 3. e3 {[%clk 0:10:00.7]} 3... Nf6 {[%clk 0:09:59.4]}
4. Nc3 {[%clk 0:09:57.9]} 4... Nbd7 {[%clk 0:10:00.2]} 5. cxd5 {[%clk
0:09:39.6]} 5... Nxd5 {[%clk 0:09:51.8]} 6. Nf3 {[%clk 0:09:31.2]} 6... e6
{[%clk 0:09:45.8]} 7. Bd3 {[%clk 0:09:16.9]} 7... Be7 {[%clk 0:09:38.9]} 8. O-O
{[%clk 0:09:11.5]} 8... O-O {[%clk 0:09:39.4]} 9. e4 {[%clk 0:08:31.7]} 9...
Nxc3 {[%clk 0:09:09.9]} 10. bxc3 {[%clk 0:08:31.1]} 10... e5 {[%clk 0:09:06.1]}
11. Be3 {[%clk 0:08:01.9]} 11... Qa5 {[%clk 0:08:10.4]} 12. Qc2 {[%clk
0:07:41.6]} 12... exd4 {[%clk 0:07:34.9]} 13. cxd4 {[%clk 0:07:34.9]} 13... Nb6
{[%clk 0:07:36]} 14. a4 {[%clk 0:06:45.2]} 14... Be6 {[%clk 0:06:44.7]} 15. Rfb1
{[%clk 0:06:05.6]} 15... Bc8 {[%clk 0:03:08.8]} 16. Ne5 {[%clk 0:04:54.1]} 16...
Nd7 {[%clk 0:03:08]} 17. Nxd7 {[%clk 0:04:44.3]} 17... Bxd7 {[%clk 0:03:09.9]}
18. Rxb7 {[%clk 0:04:44.2]} 18... Rfd8 {[%clk 0:03:11.5]} 19. e5 {[%clk
0:04:28.7]} 19... h6 {[%clk 0:03:08.7]} 20. Bc4 {[%clk 0:04:15.5]} 20... Bg5
{[%clk 0:02:34.7]} 21. f4 {[%clk 0:03:10.3]} 1-0

[Event "GrandPrix_29.05"]
[Site "Chess.com"]
[Date "2020.05.29"]
[Round "2"]
[White "Lavrov_Maxim"]
[Black "Infernal_XaM"]
[Result "0-1"]
[WhiteElo "2256"]
[BlackElo "2735"]
[TimeControl "600+2"]
[EndTime "9:50:11 PDT"]
[Termination "Infernal_XaM won by resignation"]

1. e4 {[%clk 0:10:01.9]} 1... e5 {[%clk 0:09:59.7]} 2. Nf3 {[%clk 0:10:01.7]}
2... Nf6 {[%clk 0:10:01.3]} 3. Nxe5 {[%clk 0:10:01.4]} 3... Nxe4 {[%clk
0:10:02.7]} 4. Qe2 {[%clk 0:09:54.9]} 4... Qe7 {[%clk 0:10:04.2]} 5. Qxe4 {[%clk
0:09:41.4]} 5... d6 {[%clk 0:10:05.2]} 6. Nc3 {[%clk 0:09:15.4]} 6... Qxe5
{[%clk 0:10:03.3]} 7. Qxe5+ {[%clk 0:09:13.2]} 7... dxe5 {[%clk 0:10:04.1]} 8.
Bc4 {[%clk 0:09:04]} 8... Bc5 {[%clk 0:09:41.4]} 9. d3 {[%clk 0:08:51.4]} 9...
O-O {[%clk 0:09:38.6]} 10. Be3 {[%clk 0:08:51.5]} 10... Bb4 {[%clk 0:09:35.7]}
11. O-O {[%clk 0:08:41.1]} 11... Bxc3 {[%clk 0:09:25.8]} 12. bxc3 {[%clk
0:08:40.2]} 12... Nc6 {[%clk 0:09:27.4]} 13. f4 {[%clk 0:08:28.7]} 13... Re8
{[%clk 0:09:24.9]} 14. Rae1 {[%clk 0:08:25.7]} 14... Be6 {[%clk 0:09:13.9]} 15.
Bxe6 {[%clk 0:08:12.5]} 15... Rxe6 {[%clk 0:09:14.4]} 16. fxe5 {[%clk
0:07:30.1]} 16... Rxe5 {[%clk 0:09:12.6]} 17. Bf4 {[%clk 0:07:28.9]} 17... Ra5
{[%clk 0:08:59.4]} 18. Bxc7 {[%clk 0:07:10.6]} 18... Rxa2 {[%clk 0:08:59.9]} 19.
d4 {[%clk 0:06:58.5]} 19... Rxc2 {[%clk 0:07:53.6]} 20. d5 {[%clk 0:06:49.7]}
20... Nd4 {[%clk 0:07:54.7]} 21. Re7 {[%clk 0:04:01.8]} 21... Ne2+ {[%clk
0:07:46.2]} 22. Kh1 {[%clk 0:03:57.8]} 22... Nxc3 {[%clk 0:07:47.1]} 23. d6
{[%clk 0:03:36.7]} 23... Nd5 {[%clk 0:07:41]} 24. Rd7 {[%clk 0:01:56]} 24... Rc8
{[%clk 0:06:56.3]} 25. Rd1 {[%clk 0:01:43.4]} 25... h5 {[%clk 0:06:38]} 26. Rd8+
{[%clk 0:01:29.8]} 26... Rxd8 {[%clk 0:06:38.4]} 27. Bxd8 {[%clk 0:01:31]} 27...
Rc6 {[%clk 0:06:31.7]} 28. Be7 {[%clk 0:01:19]} 28... Nb6 {[%clk 0:06:26.8]} 29.
g3 {[%clk 0:01:04.4]} 29... Nd7 {[%clk 0:06:26.8]} 30. Rd5 {[%clk 0:01:03.8]}
30... Rc5 {[%clk 0:06:19.3]} 31. Rd1 {[%clk 0:00:57.2]} 31... f6 {[%clk
0:06:17.5]} 32. Kg2 {[%clk 0:00:49.9]} 32... Kf7 {[%clk 0:06:14.4]} 33. Kf3
{[%clk 0:00:50.2]} 33... a5 {[%clk 0:06:09.8]} 34. Ke4 {[%clk 0:00:50.9]} 34...
b5 {[%clk 0:06:06.8]} 35. Bd8 {[%clk 0:00:45.4]} 35... a4 {[%clk 0:06:04.1]} 0-1

[Event "GrandPrix_29.05"]
[Site "Chess.com"]
[Date "2020.05.29"]
[Round "2"]
[White "MaxVavulin"]
[Black "GM_RobertoMogranzini"]
[Result "1-0"]
[WhiteElo "2153"]
[BlackElo "1581"]
[TimeControl "600+2"]
[EndTime "9:50:34 PDT"]
[Termination "MaxVavulin won by resignation"]

1. e4 {[%clk 0:10:01.9]} 1... c5 {[%clk 0:09:57.3]} 2. Nf3 {[%clk 0:10:01.8]}
2... Nc6 {[%clk 0:09:54.5]} 3. Bb5 {[%clk 0:09:54.7]} 3... g6 {[%clk 0:09:47.6]}
4. Bxc6 {[%clk 0:09:52]} 4... bxc6 {[%clk 0:09:49.5]} 5. d3 {[%clk 0:09:38.5]}
5... Bg7 {[%clk 0:09:47.9]} 6. Nc3 {[%clk 0:09:38.2]} 6... Rb8 {[%clk
0:09:15.4]} 7. O-O {[%clk 0:09:34.6]} 7... d6 {[%clk 0:09:04]} 8. e5 {[%clk
0:09:23.5]} 8... d5 {[%clk 0:07:08]} 9. Na4 {[%clk 0:09:05.5]} 9... Qa5 {[%clk
0:06:09.5]} 10. b3 {[%clk 0:09:02]} 10... Bg4 {[%clk 0:06:09.4]} 11. Bf4 {[%clk
0:09:02.4]} 11... e6 {[%clk 0:05:42.2]} 12. c4 {[%clk 0:08:53.3]} 12... Ne7
{[%clk 0:05:32.5]} 13. h3 {[%clk 0:08:39.3]} 13... Bxf3 {[%clk 0:05:32.9]} 14.
Qxf3 {[%clk 0:08:40.9]} 14... Nf5 {[%clk 0:05:24.5]} 15. Rac1 {[%clk 0:08:29]}
15... Rc8 {[%clk 0:04:43.2]} 16. Qd1 {[%clk 0:07:57.3]} 16... O-O {[%clk
0:04:37.2]} 17. Qe1 {[%clk 0:07:32.4]} 17... Qd8 {[%clk 0:04:18.8]} 18. Nxc5
{[%clk 0:07:15.6]} 18... dxc4 {[%clk 0:04:12.3]} 19. Rxc4 {[%clk 0:06:30.8]}
19... Qe7 {[%clk 0:04:12.4]} 20. Qe2 {[%clk 0:05:19.3]} 20... Rfd8 {[%clk
0:04:09.1]} 21. Rfc1 {[%clk 0:05:17.7]} 21... Rd5 {[%clk 0:04:04.5]} 22. g4
{[%clk 0:04:28.3]} 22... Nd4 {[%clk 0:04:02.2]} 23. Qe3 {[%clk 0:04:28.8]} 23...
Rcd8 {[%clk 0:03:56.4]} 24. Kg2 {[%clk 0:04:27.3]} 24... h6 {[%clk 0:03:26.2]}
25. Ne4 {[%clk 0:04:01.1]} 25... Bxe5 {[%clk 0:03:17.8]} 26. Bxe5 {[%clk
0:03:55.2]} 26... Rxe5 {[%clk 0:03:18.2]} 27. Rxd4 {[%clk 0:03:53.1]} 27... f5
{[%clk 0:03:13.2]} 28. Rxd8+ {[%clk 0:03:42.4]} 28... Qxd8 {[%clk 0:03:15.1]}
29. Qf4 {[%clk 0:02:49.8]} 29... Qd5 {[%clk 0:03:14.2]} 30. Rc5 {[%clk
0:02:36.5]} 30... Rxe4 {[%clk 0:03:14.1]} 31. Qb8+ {[%clk 0:02:36.2]} 1-0

[Event "GrandPrix_29.05"]
[Site "Chess.com"]
[Date "2020.05.29"]
[Round "2"]
[White "BakuTurk"]
[Black "esskeettit"]
[Result "1-0"]
[WhiteElo "2216"]
[BlackElo "2183"]
[TimeControl "600+2"]
[EndTime "9:51:02 PDT"]
[Termination "BakuTurk won by resignation"]

1. d4 {[%clk 0:10:01.9]} 1... Nf6 {[%clk 0:09:57.5]} 2. Nf3 {[%clk 0:10:02.8]}
2... e6 {[%clk 0:09:56.2]} 3. Bg5 {[%clk 0:10:03.2]} 3... h6 {[%clk 0:09:44.9]}
4. Bh4 {[%clk 0:10:03.7]} 4... d5 {[%clk 0:09:13.1]} 5. e3 {[%clk 0:09:59.5]}
5... c5 {[%clk 0:09:06.9]} 6. Nbd2 {[%clk 0:09:57.9]} 6... Nc6 {[%clk
0:09:05.6]} 7. c3 {[%clk 0:09:57.2]} 7... Be7 {[%clk 0:08:52.4]} 8. Bd3 {[%clk
0:09:56.7]} 8... O-O {[%clk 0:08:20.5]} 9. Ne5 {[%clk 0:09:55.4]} 9... Bd7
{[%clk 0:07:45.1]} 10. f4 {[%clk 0:09:53.9]} 10... Rc8 {[%clk 0:07:40]} 11. O-O
{[%clk 0:09:44.6]} 11... Be8 {[%clk 0:06:47.4]} 12. Qf3 {[%clk 0:08:44.2]} 12...
Nd7 {[%clk 0:06:25.3]} 13. Bxe7 {[%clk 0:08:00.4]} 13... Qxe7 {[%clk 0:06:05.2]}
14. Qh3 {[%clk 0:07:51.8]} 14... f5 {[%clk 0:05:55]} 15. Ndf3 {[%clk 0:07:21.5]}
15... Nf6 {[%clk 0:05:50.7]} 16. Nxc6 {[%clk 0:07:19.9]} 16... bxc6 {[%clk
0:05:48.6]} 17. Ne5 {[%clk 0:07:18.2]} 17... Ne4 {[%clk 0:05:48.5]} 18. Bxe4
{[%clk 0:07:12.3]} 18... dxe4 {[%clk 0:05:45.2]} 19. Rfd1 {[%clk 0:06:43.7]}
19... cxd4 {[%clk 0:05:44.4]} 20. Rxd4 {[%clk 0:06:42.6]} 20... Qb7 {[%clk
0:05:32.5]} 21. Rd2 {[%clk 0:06:36.8]} 21... c5 {[%clk 0:04:40.6]} 22. c4 {[%clk
0:05:56.2]} 22... Qb4 {[%clk 0:04:14.9]} 23. Rad1 {[%clk 0:05:54.5]} 23... Qa4
{[%clk 0:04:15.7]} 24. b3 {[%clk 0:05:49.2]} 24... Qb4 {[%clk 0:04:16.6]} 25.
Qh4 {[%clk 0:05:43.8]} 25... Qc3 {[%clk 0:04:15.3]} 26. Kf2 {[%clk 0:05:42.1]}
26... Kh7 {[%clk 0:04:07.5]} 27. Qe7 {[%clk 0:05:31.6]} 27... Bh5 {[%clk
0:04:00.6]} 28. Rd7 {[%clk 0:05:25.1]} 28... Rg8 {[%clk 0:04:01.9]} 29. R1d2
{[%clk 0:05:25.7]} 29... Rc7 {[%clk 0:03:45.2]} 30. Qxe6 {[%clk 0:05:21.8]}
30... Rxd7 {[%clk 0:03:46.3]} 31. Qxd7 {[%clk 0:05:22.6]} 31... Rf8 {[%clk
0:03:37.7]} 32. h3 {[%clk 0:05:17.3]} 32... Be8 {[%clk 0:03:24.6]} 33. Qd6
{[%clk 0:05:14.7]} 33... Rf6 {[%clk 0:03:24.7]} 34. Qd8 {[%clk 0:05:08.8]} 34...
Bh5 {[%clk 0:03:22.9]} 35. Rd7 {[%clk 0:04:25.2]} 35... Ra6 {[%clk 0:03:04.1]}
36. a4 {[%clk 0:03:54.6]} 36... Rb6 {[%clk 0:03:04.6]} 37. Qe7 {[%clk
0:03:45.4]} 37... Rg6 {[%clk 0:02:39]} 38. Nxg6 {[%clk 0:03:45.3]} 38... Bxg6
{[%clk 0:02:39.8]} 39. Qe5 {[%clk 0:03:44.3]} 39... Qd2+ {[%clk 0:02:22.5]} 40.
Rxd2 {[%clk 0:03:44.1]} 1-0

[Event "GrandPrix_29.05"]
[Site "Chess.com"]
[Date "2020.05.29"]
[Round "2"]
[White "TheNextLevelFan"]
[Black "Pierluigi15"]
[Result "1-0"]
[WhiteElo "2561"]
[BlackElo "2401"]
[TimeControl "600+2"]
[EndTime "9:51:03 PDT"]
[Termination "TheNextLevelFan won by resignation"]

1. d4 {[%clk 0:10:01.9]} 1... d5 {[%clk 0:09:25.2]} 2. c4 {[%clk 0:09:55.6]}
2... c6 {[%clk 0:09:25.1]} 3. Nf3 {[%clk 0:09:54.8]} 3... Nf6 {[%clk 0:09:18.2]}
4. e3 {[%clk 0:09:52.8]} 4... Bg4 {[%clk 0:09:14.7]} 5. Nc3 {[%clk 0:09:50.8]}
5... e6 {[%clk 0:09:11.9]} 6. h3 {[%clk 0:09:47.7]} 6... Bh5 {[%clk 0:09:11]} 7.
Be2 {[%clk 0:09:36.5]} 7... Nbd7 {[%clk 0:09:03.8]} 8. O-O {[%clk 0:09:36.4]}
8... Bd6 {[%clk 0:09:00.9]} 9. Nd2 {[%clk 0:09:30.8]} 9... Bxe2 {[%clk
0:08:38.3]} 10. Qxe2 {[%clk 0:09:32.7]} 10... Bb4 {[%clk 0:08:03.8]} 11. e4
{[%clk 0:09:28.4]} 11... Bxc3 {[%clk 0:08:02.7]} 12. bxc3 {[%clk 0:09:29.1]}
12... dxe4 {[%clk 0:08:03.4]} 13. Nxe4 {[%clk 0:09:29.4]} 13... Nxe4 {[%clk
0:08:04.6]} 14. Qxe4 {[%clk 0:09:31.1]} 14... O-O {[%clk 0:08:04.5]} 15. Rb1
{[%clk 0:08:58.4]} 15... Nf6 {[%clk 0:06:47.6]} 16. Qf3 {[%clk 0:08:42.8]} 16...
Qd7 {[%clk 0:06:47.1]} 17. Re1 {[%clk 0:08:28.2]} 17... Rac8 {[%clk 0:06:32.6]}
18. Re5 {[%clk 0:08:26.3]} 18... a6 {[%clk 0:05:12.1]} 19. a4 {[%clk 0:07:17.2]}
19... c5 {[%clk 0:05:01.5]} 20. Bg5 {[%clk 0:07:01.6]} 20... Ne8 {[%clk
0:04:24.1]} 21. Rxb7 {[%clk 0:06:55.5]} 21... Rc7 {[%clk 0:02:21.4]} 22. Rxc7
{[%clk 0:06:53.9]} 22... Nxc7 {[%clk 0:02:03.2]} 23. Rxc5 {[%clk 0:06:54.8]}
23... f6 {[%clk 0:01:36.9]} 24. Qc6 {[%clk 0:06:28.4]} 24... Rf7 {[%clk
0:01:21.5]} 25. Qxd7 {[%clk 0:05:46.4]} 25... Rxd7 {[%clk 0:01:23.4]} 26. Bf4
{[%clk 0:05:47.7]} 26... e5 {[%clk 0:01:24.4]} 27. Be3 {[%clk 0:05:48.3]} 27...
exd4 {[%clk 0:01:21.8]} 28. cxd4 {[%clk 0:05:48]} 28... Ne6 {[%clk 0:01:23.1]}
29. Rc8+ {[%clk 0:05:47.7]} 29... Kf7 {[%clk 0:01:21.8]} 30. d5 {[%clk
0:05:49.2]} 30... Nd8 {[%clk 0:01:20.5]} 31. Ra8 {[%clk 0:05:41.1]} 31... Rd6
{[%clk 0:01:02.7]} 32. Bf4 {[%clk 0:05:36.9]} 32... Rd7 {[%clk 0:01:01.2]} 33.
Rxa6 {[%clk 0:05:36.9]} 33... Nb7 {[%clk 0:01:02.6]} 34. Ra7 {[%clk 0:05:05]}
34... Ke8 {[%clk 0:00:59]} 35. Be3 {[%clk 0:05:00.2]} 35... Kd8 {[%clk
0:00:52.5]} 36. Bb6+ {[%clk 0:04:58.7]} 36... Ke7 {[%clk 0:00:52.7]} 37. a5
{[%clk 0:04:58.2]} 37... Nd6 {[%clk 0:00:53.1]} 1-0

[Event "GrandPrix_29.05"]
[Site "Chess.com"]
[Date "2020.05.29"]
[Round "2"]
[White "sergoy"]
[Black "OhanyanEminChess"]
[Result "1-0"]
[WhiteElo "2588"]
[BlackElo "2142"]
[TimeControl "600+2"]
[EndTime "9:51:22 PDT"]
[Termination "sergoy won by resignation"]

1. d4 {[%clk 0:10:01.9]} 1... Nf6 {[%clk 0:09:52.9]} 2. c4 {[%clk 0:10:02.3]}
2... c5 {[%clk 0:09:52.4]} 3. d5 {[%clk 0:10:03.2]} 3... b5 {[%clk 0:09:52.6]}
4. cxb5 {[%clk 0:10:03.7]} 4... a6 {[%clk 0:09:53]} 5. bxa6 {[%clk 0:10:04.9]}
5... g6 {[%clk 0:09:53.7]} 6. Nc3 {[%clk 0:10:05.6]} 6... Bg7 {[%clk 0:09:54.1]}
7. e4 {[%clk 0:10:05.7]} 7... O-O {[%clk 0:09:55]} 8. Nf3 {[%clk 0:10:05.6]}
8... d6 {[%clk 0:09:50]} 9. h3 {[%clk 0:10:02.1]} 9... Qa5 {[%clk 0:09:46.9]}
10. Bd2 {[%clk 0:10:02.2]} 10... Nbd7 {[%clk 0:08:06.9]} 11. Be2 {[%clk
0:09:59.8]} 11... Bxa6 {[%clk 0:08:06.1]} 12. O-O {[%clk 0:09:26.8]} 12... Rfb8
{[%clk 0:07:48.5]} 13. b3 {[%clk 0:08:58.4]} 13... Ne8 {[%clk 0:06:54]} 14. Qc2
{[%clk 0:08:43.5]} 14... Bxe2 {[%clk 0:05:18.4]} 15. Nxe2 {[%clk 0:08:45.4]}
15... Qa6 {[%clk 0:05:19.6]} 16. Bc3 {[%clk 0:08:44.3]} 16... Bxc3 {[%clk
0:05:18]} 17. Nxc3 {[%clk 0:08:46.2]} 17... Nc7 {[%clk 0:05:18.7]} 18. Rfe1
{[%clk 0:08:45.2]} 18... Nb5 {[%clk 0:05:15.2]} 19. Nxb5 {[%clk 0:08:39.6]}
19... Qxb5 {[%clk 0:05:04.2]} 20. e5 {[%clk 0:08:40.4]} 20... Nb6 {[%clk
0:03:19.5]} 21. a4 {[%clk 0:06:51.9]} 21... Qb4 {[%clk 0:02:16.8]} 22. exd6
{[%clk 0:06:27.4]} 22... exd6 {[%clk 0:02:18.7]} 23. Re4 {[%clk 0:06:28.3]}
23... Qa5 {[%clk 0:02:06.1]} 24. Rd1 {[%clk 0:06:20.9]} 24... c4 {[%clk
0:01:44.5]} 25. bxc4 {[%clk 0:06:21.4]} 25... Nxa4 {[%clk 0:01:44.2]} 26. Rde1
{[%clk 0:06:11.3]} 26... Rb2 {[%clk 0:00:39.5]} 27. Qc1 {[%clk 0:06:06.4]} 27...
Kg7 {[%clk 0:00:10.6]} 28. Re7 {[%clk 0:05:59.8]} 28... Qc3 {[%clk 0:00:08.6]}
29. Qxc3+ {[%clk 0:05:45]} 29... Nxc3 {[%clk 0:00:10.5]} 30. Ng5 {[%clk
0:05:46.4]} 30... Kg8 {[%clk 0:00:03.2]} 31. Nxf7 {[%clk 0:05:41.2]} 31... Raa2
{[%clk 0:00:03.7]} 32. Nh6+ {[%clk 0:05:40.8]} 32... Kh8 {[%clk 0:00:05]} 33.
Rf7 {[%clk 0:05:35.3]} 33... Re2 {[%clk 0:00:04.9]} 34. Rxe2 {[%clk 0:05:32.7]}
34... Rxe2 {[%clk 0:00:05.3]} 35. g4 {[%clk 0:05:28]} 35... Rc2 {[%clk
0:00:05.3]} 36. g5 {[%clk 0:05:26.8]} 1-0

[Event "GrandPrix_29.05"]
[Site "Chess.com"]
[Date "2020.05.29"]
[Round "2"]
[White "PaulfromSPb"]
[Black "FCLitras"]
[Result "1-0"]
[WhiteElo "2224"]
[BlackElo "1513"]
[TimeControl "600+2"]
[EndTime "9:51:30 PDT"]
[Termination "PaulfromSPb won by resignation"]

1. e4 {[%clk 0:09:50.4]} 1... c6 {[%clk 0:09:57.8]} 2. d4 {[%clk 0:09:47.5]}
2... d5 {[%clk 0:09:58.8]} 3. Nd2 {[%clk 0:09:37.4]} 3... dxe4 {[%clk 0:09:59]}
4. Nxe4 {[%clk 0:09:36]} 4... Bf5 {[%clk 0:09:59.9]} 5. Ng3 {[%clk 0:09:33.3]}
5... Bg6 {[%clk 0:10:00.8]} 6. h4 {[%clk 0:09:32.7]} 6... h6 {[%clk 0:10:01.7]}
7. h5 {[%clk 0:09:33.3]} 7... Bh7 {[%clk 0:10:01.9]} 8. Nf3 {[%clk 0:09:33.6]}
8... Nd7 {[%clk 0:09:58.2]} 9. Bd3 {[%clk 0:09:33.8]} 9... Bxd3 {[%clk
0:09:58.3]} 10. Qxd3 {[%clk 0:09:35.7]} 10... e6 {[%clk 0:09:59.6]} 11. Bf4
{[%clk 0:09:36.2]} 11... Qa5+ {[%clk 0:09:52.3]} 12. Bd2 {[%clk 0:09:36.8]}
12... Bb4 {[%clk 0:09:52.1]} 13. c3 {[%clk 0:09:33.6]} 13... Be7 {[%clk
0:09:52.7]} 14. Ne4 {[%clk 0:09:13.4]} 14... Ngf6 {[%clk 0:09:42.5]} 15. c4
{[%clk 0:09:13.9]} 15... Qc7 {[%clk 0:09:42.7]} 16. O-O-O {[%clk 0:08:47.1]}
16... b5 {[%clk 0:09:29]} 17. c5 {[%clk 0:08:08.4]} 17... Rd8 {[%clk 0:08:58.5]}
18. Nxf6+ {[%clk 0:07:50.3]} 18... Nxf6 {[%clk 0:08:30]} 19. Qe2 {[%clk
0:06:42.7]} 19... Nd5 {[%clk 0:06:37.8]} 20. g3 {[%clk 0:06:22.7]} 20... O-O
{[%clk 0:06:30.2]} 21. Qe1 {[%clk 0:06:12.9]} 21... Rb8 {[%clk 0:06:09.7]} 22.
Ne5 {[%clk 0:06:04.7]} 22... Bf6 {[%clk 0:06:04.3]} 23. f4 {[%clk 0:05:44.8]}
23... Bxe5 {[%clk 0:05:39.9]} 24. fxe5 {[%clk 0:05:24.3]} 24... b4 {[%clk
0:05:40.7]} 25. g4 {[%clk 0:05:03.3]} 25... Qa5 {[%clk 0:05:10.7]} 26. Kb1
{[%clk 0:04:54.4]} 26... Qa6 {[%clk 0:05:07.5]} 27. g5 {[%clk 0:04:03.5]} 27...
Nc3+ {[%clk 0:04:47.8]} 28. Bxc3 {[%clk 0:03:55.3]} 28... bxc3 {[%clk
0:04:48.5]} 29. Qxc3 {[%clk 0:03:53.6]} 29... hxg5 {[%clk 0:04:48.5]} 30. h6
{[%clk 0:03:42.2]} 30... g6 {[%clk 0:04:47.2]} 31. h7+ {[%clk 0:03:29.1]} 31...
Kh8 {[%clk 0:04:45.5]} 32. Qf3 {[%clk 0:02:56.7]} 32... f5 {[%clk 0:04:45.4]}
33. exf6 {[%clk 0:02:57.4]} 33... Qb5 {[%clk 0:04:26.9]} 34. Rh2 {[%clk
0:02:33.6]} 34... Rf7 {[%clk 0:04:22.6]} 35. Qe3 {[%clk 0:02:20.1]} 35... Qc4
{[%clk 0:04:22.6]} 36. Qxg5 {[%clk 0:02:09.8]} 36... Rfb7 {[%clk 0:04:22.6]} 37.
f7 {[%clk 0:01:17.3]} 37... Rxf7 {[%clk 0:04:20.4]} 38. Qe5+ {[%clk 0:01:17]}
1-0